bitfinex-derivatives/quotes_BTCF0:USTF0_20251219
["timestamp","ask_amount","ask_price","bid_price","bid_amount"]
[1766154250832,0.00017034,88048.0,88025.0,0.00572]
[1766154251020,0.0113645,88042.0,88025.0,0.00572]
[1766154251419,0.00017034,88048.0,88025.0,0.00572]
[1766154251420,0.0113638,88047.0,88025.0,0.00576063]
[1766154251630,0.0113654,88035.0,88025.0,6.3e-07]
[1766154251935,0.011365,88038.0,88024.0,6.3e-07]
[1766154252131,0.0113652,88036.0,88024.0,6.3e-07]
[1766154252636,0.0113657,88033.0,88018.0,0.00227228]
[1766154252832,0.0113657,88033.0,88019.0,0.00572]
[1766154253129,0.0113653,88036.0,88019.0,0.00572]
[1766154253829,0.0113653,88036.0,88019.0,0.0170873]
[1766154254036,0.0113649,88039.0,88019.0,0.0170873]
[1766154254734,0.26973512,88040.0,88020.0,0.0113672]
[1766154255635,0.26973512,88040.0,88019.0,0.00572]
[1766154255636,0.25837042,88040.0,88019.0,0.00572]
[1766154255836,0.0113649,88039.0,88019.0,0.0170873]
[1766154256736,0.00017034,88048.0,88034.0,0.0113654]
[1766154256930,0.00572,88047.0,88031.0,0.00572]
[1766154257326,0.00572,88047.0,88033.0,0.0113655]
[1766154258435,0.00017034,88048.0,88037.0,0.011365]
[1766154258737,0.00017034,88048.0,88034.0,0.0113653]
[1766154258933,0.00017034,88048.0,88031.0,0.0170858]
[1766154259123,0.00017034,88048.0,88033.0,0.0113655]
[1766154259732,0.00017034,88048.0,88031.0,0.00572]
[1766154260038,0.00017034,88048.0,88032.0,0.00448]
[1766154260236,0.00017034,88048.0,88035.0,0.0113653]
[1766154260538,0.00017034,88048.0,88032.0,0.0158457]
[1766154261233,0.00017034,88048.0,88034.0,0.0113654]
[1766154261430,0.00017034,88048.0,88032.0,0.00448]
[1766154261631,0.00017034,88048.0,88035.0,0.0113653]
[1766154262229,0.00017034,88048.0,88037.0,0.011365]
[1766154262629,0.00017034,88048.0,88034.0,0.0113654]
[1766154263428,0.00017034,88048.0,88033.0,0.0113656]
[1766154264430,0.00017034,88048.0,88032.0,0.00448]
[1766154264637,0.00017034,88048.0,88032.0,0.0158457]
[1766154264935,0.00017034,88048.0,88034.0,0.0113654]
[1766154265838,0.00017034,88048.0,88032.0,0.00448]
[1766154266029,0.00236,88058.0,88032.0,0.00448]
[1766154266330,0.00236,88058.0,88042.0,0.0113644]
[1766154266529,0.00236,88058.0,88043.0,0.00572]
[1766154266930,0.00236,88058.0,88044.0,0.0113641]
[1766154267132,0.00017034,88060.0,88044.0,0.011364]
[1766154267329,0.00017034,88060.0,88043.0,0.00572]
[1766154268133,0.00017034,88060.0,88044.0,0.0113642]
[1766154268335,0.25854076,88060.0,88043.0,0.00572]
[1766154268732,0.00017034,88060.0,88043.0,0.00572]
[1766154268933,0.00017034,88060.0,88043.0,0.0170842]
[1766154269238,0.00017034,88060.0,88043.0,0.00572]
[1766154269741,0.00017034,88060.0,88044.0,0.0113642]
[1766154270248,0.01153254,88060.0,88043.0,0.00572]
[1766154270445,0.00017034,88060.0,88043.0,0.00572]
[1766154270645,0.00017034,88060.0,88043.0,0.0170842]
[1766154271035,0.01153254,88060.0,88043.0,0.00572]
[1766154271232,0.00017034,88060.0,88043.0,0.00572]
[1766154271430,0.08509852,88095.0,88043.0,0.00572]
[1766154271636,0.0113603,88075.0,88053.0,0.0113629]
[1766154271830,0.25837042,88080.0,88054.0,0.00572]
[1766154272035,0.0113612,88067.0,88054.0,0.00572]
[1766154272940,0.00017034,88069.0,88054.0,0.00456]
[1766154272941,0.0113615,88065.0,88054.0,0.00456]
[1766154273142,0.0113611,88068.0,88054.0,0.00456]
[1766154273444,0.00017034,88069.0,88054.0,0.00456]
[1766154273844,0.01153134,88069.0,88054.0,0.00456]
[1766154274646,0.00017034,88069.0,88055.0,0.0113627]
[1766154274841,0.0113611,88068.0,88054.0,0.00456]
[1766154275042,0.00017034,88069.0,88054.0,0.00456]
[1766154277145,0.00017034,88069.0,88052.0,0.00017034]
[1766154277446,0.00017034,88069.0,88053.0,0.00392]
[1766154277767,0.00017034,88069.0,88052.0,0.00017034]
[1766154277939,0.0113621,88060.0,88052.0,4e-08]
[1766154278139,0.0113628,88055.0,88052.0,4e-08]
[1766154278443,0.0113628,88055.0,88048.0,4e-08]
[1766154278832,0.25837042,88062.0,88039.0,0.00572]
[1766154278833,0.0113634,88051.0,88039.0,0.00572]
[1766154279432,0.25828905,88050.0,88039.0,0.00572]
[1766154279637,0.0113634,88051.0,88039.0,0.00572]
[1766154280736,0.0113636,88049.0,88039.0,0.00572]
[1766154280934,0.00017034,88054.0,88036.0,3.4e-07]
[1766154281139,0.0113646,88041.0,88036.0,3.4e-07]
[1766154282246,0.0113642,88044.0,88036.0,3.4e-07]
[1766154282451,0.0113645,88042.0,88036.0,3.4e-07]
[1766154283247,0.0113648,88040.0,88036.0,3.4e-07]
[1766154283445,0.011365,88038.0,88036.0,3.4e-07]
[1766154284343,0.25828905,88046.0,88036.0,3.4e-07]
[1766154284548,0.0113642,88044.0,88036.0,3.4e-07]
[1766154284941,0.00572,88049.0,88036.0,3.4e-07]
[1766154285140,0.0113645,88042.0,88036.0,3.4e-07]
[1766154285344,0.0113647,88040.0,88036.0,3.4e-07]
[1766154285840,0.0113644,88043.0,88036.0,3.4e-07]
[1766154286352,0.00572,88049.0,88036.0,3.4e-07]
[1766154287446,0.0113636,88049.0,88036.0,3.4e-07]
[1766154287644,0.00572,88052.0,88037.0,0.00244]
[1766154288548,0.0113634,88050.0,88037.0,0.00244]
[1766154288947,0.00572,88052.0,88037.0,0.00244]
[1766154289149,0.0113638,88047.0,88037.0,0.00244]
[1766154289645,0.26965255,88050.0,88037.0,0.00244]
[1766154289851,0.0113635,88050.0,88037.0,0.00244]
[1766154290051,0.26965255,88050.0,88037.0,0.00244]
[1766154290247,0.25828905,88050.0,88036.0,3.4e-07]
[1766154290645,0.0113647,88040.0,88036.0,3.4e-07]
[1766154290840,0.0113644,88043.0,88036.0,3.4e-07]
[1766154291352,0.0113649,88039.0,88036.0,3.4e-07]
[1766154291854,0.0113645,88042.0,88036.0,3.4e-07]
[1766154292347,0.0113649,88039.0,88036.0,3.4e-07]
[1766154294850,0.0113645,88042.0,88036.0,3.4e-07]
[1766154295657,0.0113647,88040.0,88036.0,3.4e-07]
[1766154295956,0.011365,88038.0,88036.0,3.4e-07]
[1766154296750,0.0113639,88046.0,88036.0,3.4e-07]
[1766154297059,0.2583403,88050.0,88036.0,3.4e-07]
[1766154297455,0.0113644,88043.0,88036.0,3.4e-07]
[1766154297661,0.0113649,88039.0,88036.0,3.4e-07]
[1766154298151,0.0113644,88043.0,88036.0,3.4e-07]
[1766154298350,0.0113647,88041.0,88036.0,3.4e-07]
[1766154298554,0.0113648,88039.0,88036.0,3.4e-07]
[1766154299452,0.00572,88051.0,88036.0,3.4e-07]
[1766154299757,0.2583403,88050.0,88036.0,3.4e-07]
[1766154300264,0.2583403,88046.0,88015.0,0.00244]
[1766154300460,0.2583403,88030.0,88015.0,0.00244]
[1766154300759,0.5166806,88028.0,87975.0,0.07968362]
[1766154301053,0.05679617,88029.0,87982.0,0.0113721]
[1766154301054,0.0113681,88014.0,87982.0,0.0113721]
[1766154301354,0.00017044,88007.0,87979.0,0.00572]
[1766154301558,0.00017044,88007.0,87985.0,0.0113717]
[1766154301753,0.00017044,88007.0,87980.0,0.2583403]
[1766154301754,0.00017044,88007.0,87990.0,0.2583403]
[1766154302056,0.00017044,88007.0,87991.0,0.00572]
[1766154302249,0.00017044,88007.0,87991.0,0.00372]
[1766154302756,0.00017044,88007.0,87995.0,0.0113704]
[1766154302958,0.00017044,88007.0,87991.0,0.00372]
[1766154303151,0.00017044,88007.0,87992.0,0.0113708]
[1766154303351,4e-08,88007.0,88000.0,0.0113698]
[1766154303545,4e-08,88007.0,87971.0,0.01162684]
[1766154303546,0.00012,88011.0,87992.0,0.0113708]
[1766154303760,0.2583403,88010.0,87992.0,0.0113708]
[1766154304057,0.00572,88010.0,87992.0,0.0093708]
[1766154304248,0.2640603,88010.0,87992.0,0.0093708]
[1766154304449,0.00572,88010.0,87991.0,0.00572]
[1766154304653,0.00017044,88009.0,87992.0,0.00017044]
[1766154305156,0.26223074,88010.0,87992.0,0.00017044]
[1766154305750,0.2583403,88002.0,87992.0,0.00017044]
[1766154305955,0.2583403,88002.0,87984.0,0.00172]
[1766154306861,0.25851074,88002.0,87984.0,0.00189044]
[1766154307062,0.2583403,88000.0,87984.0,0.00189044]
[1766154307465,0.2583403,88000.0,87984.0,4.4e-07]
[1766154308067,0.00017044,88002.0,87984.0,4.4e-07]
[1766154308455,0.2583403,87994.0,87984.0,4.4e-07]
[1766154308657,0.2583403,87990.0,87970.0,0.00032]
[1766154309353,0.00252,87993.0,87970.0,0.00032]
[1766154309354,0.0113713,87989.0,87970.0,0.00032]
[1766154309563,0.00252,87993.0,87964.0,0.05]
[1766154309862,0.00252,87993.0,87939.0,0.0113776]
[1766154309863,0.0113738,87970.0,87939.0,0.0113776]
[1766154310068,0.2583403,87960.0,87939.0,0.00436]
[1766154310258,0.00017054,87963.0,87946.0,0.0113768]
[1766154310460,0.0008,87969.0,87962.0,0.0113747]
[1766154310661,8.314e-05,87968.0,87955.0,0.00572]
[1766154310865,2.38776,87992.0,87967.0,0.011374]
[1766154311074,0.2583403,87980.0,87957.0,0.0113753]
[1766154311256,0.2583403,87970.0,87944.0,0.00544]
[1766154311456,0.00572,87973.0,87953.0,0.0113758]
[1766154311650,0.00017054,87966.0,87958.0,0.0113752]
[1766154311868,0.00092,87984.0,87956.0,0.2583403]
[1766154312065,0.00028,87984.0,87967.0,0.011374]
[1766154312270,0.2583403,87980.0,87966.0,0.00572]
[1766154313168,0.00017054,87982.0,87967.0,0.00452]
[1766154313362,0.00017054,87982.0,87967.0,0.00252]
[1766154313968,0.00017054,87982.0,87964.0,0.00017054]
[1766154314557,0.0113723,87981.0,87964.0,5.4e-07]
[1766154314965,0.00028,87984.0,87961.0,0.00168]
[1766154315168,0.00572,87980.0,87961.0,0.00168]
[1766154315762,0.32911898,87980.0,87930.0,0.32339898]
[1766154315969,0.0113726,87979.0,87939.0,2.38824]
[1766154316270,0.00017054,87968.0,87951.0,0.0113761]
[1766154316469,0.00017054,87968.0,87953.0,0.0113759]
[1766154316662,4e-08,87968.0,87958.0,0.0113752]
[1766154316862,0.0008,87978.0,87961.0,0.0113748]
[1766154317866,0.00097054,87978.0,87952.0,0.00572]
[1766154318068,0.00097054,87978.0,87953.0,0.00188]
[1766154318267,0.0113742,87967.0,87950.0,0.00017054]
[1766154318469,0.0113745,87964.0,87950.0,0.00017054]
[1766154318773,0.0113745,87964.0,87950.0,5.4e-07]
[1766154319567,0.0113749,87961.0,87950.0,5.4e-07]
[1766154320269,0.0113757,87955.0,87950.0,5.4e-07]
[1766154320468,0.0113757,87955.0,87919.0,2.38852]
[1766154320469,0.00572,87955.0,87919.0,2.38852]
[1766154320670,0.00572,87955.0,87931.0,0.0113787]
[1766154320863,0.00572,87955.0,87932.0,0.00572]
[1766154321064,0.00372,87955.0,87933.0,0.0113785]
[1766154321363,0.00372,87955.0,87932.0,0.00572]
[1766154321563,0.00017054,87952.0,87935.0,0.00017054]
[1766154322782,0.0113767,87947.0,87928.0,0.00092]
[1766154322973,0.00224,87947.0,87928.0,0.00092]
[1766154323868,0.00056,87949.0,87929.0,0.00017054]
[1766154324272,0.0119365,87949.0,87929.0,0.00017054]
[1766154324473,0.0113769,87945.0,87929.0,0.00017054]
[1766154324772,0.0113785,87933.0,87903.0,0.0113823]
[1766154324966,0.0113779,87938.0,87911.0,0.0113813]
[1766154325161,0.0113779,87938.0,87905.0,2.38896]
[1766154325162,0.0113773,87943.0,87915.0,0.0113808]
[1766154325365,0.0113773,87943.0,87914.0,0.00368]
[1766154325366,0.00364,87942.0,87919.0,0.0113803]
[1766154325565,0.32339898,87960.0,87919.0,0.0113803]
[1766154325770,0.01154714,87948.0,87919.0,0.0113803]
[1766154325966,0.0113769,87946.0,87914.0,0.015061]
[1766154326178,0.0170968,87947.0,87918.0,0.0113804]
[1766154326379,0.00572,87947.0,87914.0,0.00368]
[1766154326578,0.0113784,87934.0,87908.0,0.0113817]
[1766154326775,0.00017054,87930.0,87908.0,0.0113817]
[1766154327184,0.00017054,87930.0,87907.0,0.0012]
[1766154327477,0.00368,87929.0,87900.0,2.38912]
[1766154327666,0.0113812,87913.0,87882.0,0.00572]
[1766154327875,0.0113817,87909.0,87882.0,0.00572]
[1766154328071,0.00017066,87906.0,87882.0,0.00572]
[1766154328271,0.00017066,87906.0,87889.0,0.0113842]
[1766154328468,0.00017066,87906.0,87882.0,0.00572]
[1766154328673,0.00017066,87906.0,87882.0,0.00372]
[1766154328872,0.00012092,87905.0,87882.0,0.0151051]
[1766154329078,0.00401158,87913.0,87882.0,0.00372]
[1766154329575,0.0113813,87912.0,87882.0,0.00372]
[1766154329779,0.0113813,87912.0,87882.0,0.00172]
[1766154329983,0.0113825,87903.0,87870.0,8.341e-05]
[1766154330183,0.00017066,87895.0,87870.0,8.341e-05]
[1766154330381,0.00017066,87895.0,87880.0,0.0093853]
[1766154330568,0.00017066,87895.0,87879.0,0.0113854]
[1766154330878,0.00092,87914.0,87889.0,0.0113841]
[1766154331078,0.09169383,87922.0,87889.0,0.0171041]
[1766154331271,0.04381211,87921.0,87889.0,0.00572]
[1766154331472,0.0113807,87917.0,87874.0,0.011386]
[1766154331675,0.00017066,87904.0,87887.0,0.00017066]
[1766154332071,0.00017066,87904.0,87888.0,0.0113843]
[1766154332472,0.08877676,87922.0,87887.0,0.00017066]
[1766154332673,0.00572,87921.0,87893.0,0.0113836]
[1766154332982,0.00184,87926.0,87903.0,0.0113823]
[1766154333171,0.00184,87926.0,87898.0,0.011383]
[1766154333371,0.00017066,87921.0,87905.0,0.011382]
[1766154333583,0.00017066,87921.0,87905.0,0.00364]
[1766154333879,0.00954886,87936.0,87906.0,0.0113819]
[1766154334070,0.02975738,87935.0,87906.0,0.0113819]
[1766154334273,0.0113786,87933.0,87905.0,0.00164]
[1766154334471,0.02671738,87932.0,87910.0,0.0113814]
[1766154334673,0.00304,87935.0,87905.0,0.013022]
[1766154334870,0.00017066,87929.0,87906.0,0.0042]
[1766154335284,0.00017066,87929.0,87908.0,0.0113817]
[1766154335981,0.00017066,87929.0,87912.0,0.0113812]
[1766154336484,0.00017066,87929.0,87915.0,0.0113808]
[1766154336485,6.6e-07,87929.0,87915.0,0.0113808]
[1766154336781,6.6e-07,87929.0,87906.0,0.0042]
[1766154336983,6.6e-07,87929.0,87906.0,0.0022]
[1766154337183,6.6e-07,87929.0,87918.0,0.0113804]
[1766154337389,6.6e-07,87929.0,87922.0,0.0113798]
[1766154337575,6.6e-07,87929.0,87917.0,0.00572]
[1766154337883,0.0113762,87952.0,87917.0,0.00572]
[1766154338083,0.03040207,87951.0,87922.0,0.0113799]
[1766154338276,0.02676207,87950.0,87922.0,0.0113799]
[1766154338470,0.00676207,87950.0,87922.0,0.0113799]
[1766154338672,0.011377,87945.0,87917.0,0.0171005]
[1766154338881,0.32339898,87930.0,87901.0,0.00544]
[1766154339184,0.00364,87934.0,87901.0,0.00544]
[1766154339385,0.00364,87934.0,87898.0,0.12510843]
[1766154339386,0.0113792,87928.0,87898.0,0.12510843]
[1766154339582,0.00364,87934.0,87908.0,0.0113816]
[1766154339782,0.0161778,87939.0,87911.0,0.0113812]
[1766154340083,0.01434846,87939.0,87916.0,0.00017066]
[1766154340274,0.0048,87939.0,87916.0,0.00017066]
[1766154341078,0.00017066,87936.0,87916.0,0.00017066]
[1766154341479,0.0113783,87935.0,87916.0,0.00017066]
[1766154341682,0.0113784,87934.0,87916.0,0.00017066]
[1766154341989,0.00017066,87936.0,87916.0,0.00017066]
[1766154342386,0.00017066,87936.0,87917.0,0.0113806]
[1766154342780,0.00017066,87936.0,87919.0,0.0113803]
[1766154343293,0.00017066,87936.0,87916.0,0.00017066]
[1766154343888,0.0113792,87928.0,87916.0,6.6e-07]
[1766154344080,0.00017066,87936.0,87901.0,0.0113825]
[1766154344081,0.00288,87930.0,87901.0,0.0113825]
[1766154344280,0.00288,87930.0,87909.0,0.0113815]
[1766154344482,0.14054654,87968.0,87908.0,0.0113817]
[1766154344483,0.0113781,87936.0,87908.0,0.0113817]
[1766154344690,0.00092,87935.0,87906.0,0.0113819]
[1766154344892,0.00092,87935.0,87906.0,0.0093819]
[1766154345186,0.00017066,87929.0,87912.0,0.00017066]
[1766154345384,0.00017066,87929.0,87912.0,0.00589066]
[1766154345892,0.00017066,87929.0,87912.0,0.00017066]
[1766154346593,0.00017066,87929.0,87913.0,0.00252]
[1766154347985,6.6e-07,87929.0,87913.0,0.00252]
[1766154348187,6.6e-07,87929.0,87914.0,0.0113809]
[1766154348385,6.6e-07,87929.0,87917.0,0.0113805]
[1766154348985,6.6e-07,87929.0,87913.0,0.00252]
[1766154348986,0.06078977,87959.0,87918.0,2.50389846]
[1766154349180,0.011371,87991.0,87940.0,0.47480319]
[1766154349380,0.011371,87991.0,87948.0,0.0113765]
[1766154349381,0.00572,87976.0,87948.0,0.0113765]
[1766154350092,0.00017056,87971.0,87953.0,0.00017056]
[1766154350287,0.00017056,87971.0,87961.0,0.0113748]
[1766154350483,5.6e-07,87971.0,87961.0,0.0113748]
[1766154350691,0.00027331,87978.0,87964.0,0.0113744]
[1766154350888,3.31e-06,87978.0,87969.0,0.0113738]
[1766154351182,0.0113694,88004.0,87974.0,0.0113731]
[1766154351381,0.0113662,88029.0,87970.0,0.00572]
[1766154351382,0.02569707,88003.0,87987.0,0.0113715]
[1766154351586,0.00572,88010.0,87987.0,0.0113715]
[1766154351790,0.00017046,88007.0,87990.0,0.00017046]
[1766154352692,0.00335228,88018.0,87990.0,0.00017046]
[1766154352693,0.00227228,88018.0,87996.0,0.0113704]
[1766154352995,0.00227228,88018.0,87998.0,0.0113701]
[1766154353192,0.00227228,88018.0,88002.0,0.0113695]
[1766154353385,0.00227228,88018.0,87997.0,0.0170901]
[1766154353587,0.00011235,88016.0,87997.0,0.0170901]
[1766154353788,0.00011235,88016.0,87990.0,0.00017046]
[1766154354090,0.00011235,88016.0,87991.0,0.00368]
[1766154354295,0.00011235,88016.0,87990.0,0.00017046]
[1766154354488,0.00011235,88016.0,87991.0,0.00368]
[1766154354688,0.00011235,88016.0,87996.0,0.0093703]
[1766154355094,0.00011235,88016.0,88000.0,0.0113698]
[1766154355394,0.0004,88024.0,88001.0,0.00424]
[1766154355794,0.011367,88022.0,88001.0,0.00424]
[1766154356398,0.011367,88022.0,88003.0,0.00017046]
[1766154356786,0.0113677,88017.0,88003.0,0.00017046]
[1766154356992,0.0113677,88017.0,88003.0,4.6e-07]
[1766154357299,0.0113669,88023.0,88003.0,4.6e-07]
[1766154357591,0.0113672,88021.0,88003.0,4.6e-07]
[1766154357792,0.47480319,88040.0,88003.0,4.6e-07]
[1766154357793,0.0113674,88019.0,88003.0,4.6e-07]
[1766154358196,0.00376,88020.0,88003.0,4.6e-07]
[1766154358385,0.0151273,88020.0,88003.0,4.6e-07]
[1766154358585,0.0113677,88017.0,88003.0,4.6e-07]
[1766154358789,0.00376,88020.0,88003.0,4.6e-07]
[1766154359595,0.00017,88021.0,88003.0,4.6e-07]
[1766154360190,0.0113673,88020.0,88003.0,4.6e-07]
[1766154360502,0.00017,88021.0,88003.0,4.6e-07]
[1766154361296,0.47480319,88060.0,88003.0,4.6e-07]
[1766154361497,2.39103124,88058.0,88004.0,0.11362086]
[1766154361703,0.00803761,88045.0,88010.0,0.47480319]
[1766154362005,0.00572,88045.0,88011.0,2.39444]
[1766154362192,0.0113636,88049.0,88011.0,2.39444]
[1766154362394,0.0113636,88049.0,88021.0,0.00017046]
[1766154362699,0.00364,88049.0,88023.0,0.0113669]
[1766154362898,0.00116,88056.0,88022.0,0.00572]
[1766154363092,0.0113628,88055.0,88022.0,0.00572]
[1766154363293,0.00227124,88058.0,88023.0,0.11358602]
[1766154363493,0.00227124,88058.0,88032.0,0.0113656]
[1766154363694,0.00072,88057.0,88021.0,0.00017046]
[1766154363896,0.0113635,88050.0,88022.0,0.011367]
[1766154364096,0.0113633,88051.0,88024.0,0.0113667]
[1766154364302,0.0113628,88055.0,88025.0,0.00368]
[1766154364491,0.00227124,88058.0,88034.0,0.0113654]
[1766154364692,0.00436,88057.0,88035.0,0.00116]
[1766154364897,0.00227124,88058.0,88035.0,0.00116]
[1766154365093,0.00227124,88058.0,88036.0,0.0113651]
[1766154365504,0.00227124,88058.0,88035.0,0.00116]
[1766154366099,0.00227124,88058.0,88035.0,0.0125252]
[1766154366501,0.00227124,88058.0,88042.0,0.0113644]
[1766154366709,0.00227124,88058.0,88045.0,0.011364]
[1766154367007,0.4734472,88090.0,88045.0,0.011364]
[1766154367008,0.0113614,88066.0,88045.0,0.00572]
[1766154367200,0.00112,88067.0,88047.0,0.00017036]
[1766154367598,0.0113616,88064.0,88047.0,0.00017036]
[1766154367809,0.00112,88067.0,88047.0,0.00017036]
[1766154368102,0.0113618,88063.0,88047.0,0.00017036]
[1766154368304,0.0113623,88059.0,88047.0,0.00017036]
[1766154368502,0.0113628,88055.0,88047.0,3.6e-07]
[1766154368709,0.0113618,88063.0,88047.0,3.6e-07]
[1766154368893,0.0113614,88065.0,88047.0,3.6e-07]
[1766154369101,0.01143797,88095.0,88047.0,3.6e-07]
[1766154369102,0.005,88064.0,88047.0,3.6e-07]
[1766154369298,0.005,88063.0,88047.0,3.6e-07]
[1766154369494,0.00016967,88064.0,88048.0,0.0113636]
[1766154370107,0.00016967,88064.0,88054.0,0.0113628]
[1766154370304,0.00016967,88064.0,88047.0,0.00564036]
[1766154370509,0.00016967,88064.0,88048.0,0.0113635]
[1766154371106,0.00016967,88064.0,88047.0,0.00564036]
[1766154371501,0.00016967,88064.0,88047.0,3.6e-07]
[1766154371711,0.0113626,88057.0,88047.0,3.6e-07]
[1766154371894,0.0113629,88054.0,88047.0,3.6e-07]
[1766154372602,0.0113625,88058.0,88047.0,3.6e-07]
[1766154372799,0.00572,88060.0,88047.0,3.6e-07]
[1766154373808,0.00452,88059.0,88047.0,3.6e-07]
[1766154373997,0.00392,88058.0,88047.0,3.6e-07]
[1766154375508,0.0152824,88058.0,88047.0,3.6e-07]
[1766154375708,0.0113627,88056.0,88047.0,3.6e-07]
[1766154376798,0.00392,88058.0,88047.0,3.6e-07]
[1766154378605,0.00016967,88064.0,88047.0,3.6e-07]
[1766154378807,0.00016967,88064.0,88051.0,0.0113632]
[1766154379306,0.00016967,88064.0,88047.0,3.6e-07]
[1766154379508,0.00016967,88064.0,88048.0,0.00564]
[1766154379706,0.00016967,88064.0,88048.0,0.0170036]
[1766154379903,0.00016967,88064.0,88048.0,0.00564]
[1766154380606,0.00016967,88064.0,88049.0,0.0113635]
[1766154380907,0.00016967,88064.0,88048.0,0.00564]
[1766154381097,0.01153137,88064.0,88048.0,0.00564]
[1766154381301,0.0113621,88061.0,88048.0,0.00564]
[1766154381497,0.0113629,88054.0,88047.0,3.6e-07]
[1766154381797,0.00016967,88064.0,88047.0,3.6e-07]
[1766154382002,0.0113632,88052.0,88047.0,3.6e-07]
[1766154382507,0.0113629,88054.0,88047.0,3.6e-07]
[1766154383214,0.0113624,88058.0,88047.0,3.6e-07]
[1766154383419,0.02583765,88057.0,88047.0,3.6e-07]
[1766154383709,0.02583765,88056.0,88047.0,3.6e-07]
[1766154383907,0.02583765,88055.0,88047.0,3.6e-07]
[1766154384112,0.0113623,88059.0,88047.0,3.6e-07]
[1766154384313,0.02584304,88058.0,88047.0,3.6e-07]
[1766154384507,0.02584304,88057.0,88047.0,3.6e-07]
[1766154384715,0.02584304,88056.0,88047.0,3.6e-07]
[1766154384913,0.02584304,88055.0,88047.0,3.6e-07]
[1766154385108,0.02584304,88054.0,88047.0,3.6e-07]
[1766154385315,0.00016967,88064.0,88048.0,0.0113636]
[1766154385510,0.02585691,88063.0,88050.0,0.0113633]
[1766154385819,0.02585691,88062.0,88052.0,0.011363]
[1766154386012,0.02585691,88061.0,88052.0,0.011363]
[1766154386211,0.00016967,88064.0,88049.0,0.0113634]
[1766154386416,0.02586774,88063.0,88049.0,0.0113634]
[1766154386608,0.02586774,88062.0,88051.0,0.0113632]
[1766154386808,0.02586774,88061.0,88051.0,0.0113632]
[1766154387008,0.00016967,88064.0,88051.0,0.0113632]
[1766154387211,0.02587287,88063.0,88051.0,0.0113632]
[1766154387514,0.02587287,88062.0,88051.0,0.0113632]
[1766154387818,0.02587287,88061.0,88051.0,0.0113632]
[1766154388021,0.02587287,88060.0,88051.0,0.0113632]
[1766154388318,0.00016967,88064.0,88047.0,3.6e-07]
[1766154388319,0.02587287,88059.0,88048.0,0.0113636]
[1766154388517,0.02587287,88058.0,88048.0,0.0113636]
[1766154388711,0.00016967,88064.0,88051.0,0.0113632]
[1766154388914,0.02590347,88063.0,88052.0,0.011363]
[1766154389116,0.02590347,88062.0,88049.0,0.0113635]
[1766154389320,0.00016967,88064.0,88049.0,0.0113635]
[1766154389321,0.02590347,88061.0,88049.0,0.0113635]
[1766154389617,0.02590347,88060.0,88048.0,0.0113636]
[1766154389818,0.02590347,88059.0,88048.0,0.0113636]
[1766154390012,0.02590347,88058.0,88047.0,3.6e-07]
[1766154390209,0.02590347,88057.0,88047.0,3.6e-07]
[1766154390521,0.02590347,88056.0,88047.0,3.6e-07]
[1766154390717,0.02590347,88055.0,88047.0,3.6e-07]
[1766154390914,0.01153127,88064.0,88047.0,3.6e-07]
[1766154391114,0.02593191,88063.0,88047.0,3.6e-07]
[1766154391314,0.01153127,88064.0,88047.0,3.6e-07]
[1766154391315,0.03729381,88062.0,88047.0,3.6e-07]
[1766154391515,0.0113621,88060.0,88047.0,3.6e-07]
[1766154391711,0.02593191,88059.0,88047.0,3.6e-07]
[1766154391915,0.02593191,88058.0,88047.0,3.6e-07]
[1766154392112,0.02593191,88057.0,88047.0,3.6e-07]
[1766154392318,0.02593191,88056.0,88047.0,3.6e-07]
[1766154392515,0.02593191,88055.0,88047.0,3.6e-07]
[1766154392817,0.02593191,88054.0,88047.0,3.6e-07]
[1766154393017,0.02593191,88053.0,88047.0,3.6e-07]
[1766154393222,0.02597336,88052.0,88047.0,3.6e-07]
[1766154393518,0.02597336,88051.0,88047.0,3.6e-07]
[1766154393715,0.02597336,88050.0,88047.0,3.6e-07]
[1766154393921,0.02597336,88049.0,88047.0,3.6e-07]
[1766154394113,0.0113625,88057.0,88047.0,3.6e-07]
[1766154394421,0.03169715,88056.0,88047.0,3.6e-07]
[1766154394618,0.0113636,88049.0,88026.0,2.38696]
[1766154394919,0.02597715,88048.0,88028.0,0.0113661]
[1766154395223,0.02597715,88048.0,88027.0,0.00572]
[1766154395420,0.02597715,88048.0,88027.0,0.0170863]
[1766154395624,0.02597715,88048.0,88027.0,0.00572]
[1766154395814,0.00017003,88046.0,88029.0,0.00017036]
[1766154396016,0.02597715,88045.0,88029.0,0.01153636]
[1766154396215,0.02597715,88044.0,88029.0,0.00017036]
[1766154396522,0.02597715,88043.0,88029.0,0.00017036]
[1766154396724,0.02597715,88042.0,88029.0,0.00017036]
[1766154396921,0.00017003,88046.0,88002.0,0.08114684]
[1766154396922,0.0113654,88035.0,88002.0,0.08114684]
[1766154397120,0.0113638,88047.0,87994.0,0.10234159]
[1766154397121,0.02597715,88034.0,88017.0,0.0113675]
[1766154397314,0.011365,88038.0,88006.0,0.011369]
[1766154397315,0.02597715,88033.0,88019.0,0.0113673]
[1766154397517,0.02597715,88032.0,88020.0,0.00564]
[1766154397828,0.02597715,88031.0,88020.0,0.00564]
[1766154398024,0.02597715,88030.0,88020.0,0.00564]
[1766154398225,0.00017036,88034.0,88020.0,0.00564]
[1766154398427,0.02595688,88033.0,88020.0,0.0170072]
[1766154398610,0.02595688,88032.0,88020.0,0.0170072]
[1766154398815,0.00017036,88034.0,88020.0,0.00564]
[1766154399011,0.0259572,88033.0,88020.0,0.00564]
[1766154399315,0.0259572,88032.0,88020.0,0.00564]
[1766154399514,0.00017036,88034.0,88020.0,0.00564]
[1766154399717,0.02595082,88033.0,88020.0,0.00564]
[1766154400024,0.02595082,88032.0,88020.0,0.00564]
[1766154400224,0.00017036,88034.0,88020.0,0.00564]
[1766154400419,0.02594643,88033.0,88020.0,0.00564]
[1766154400612,0.00017036,88034.0,88020.0,0.00564]
[1766154400818,0.02594641,88033.0,88020.0,0.00564]
[1766154401120,0.00017036,88034.0,88021.0,0.0113671]
[1766154401325,6e-08,88034.0,88030.0,0.0113659]
[1766154401520,6e-08,88034.0,88032.0,0.0113657]
[1766154402019,0.0113624,88058.0,88037.0,0.011365]
[1766154402225,0.02594432,88057.0,88037.0,0.011365]
[1766154402422,0.0113624,88058.0,88037.0,0.011365]
[1766154402423,0.02594432,88056.0,88037.0,0.011365]
[1766154402611,0.02594432,88055.0,88037.0,0.011365]
[1766154402817,0.02594432,88054.0,88037.0,0.011365]
[1766154403013,0.02594432,88053.0,88040.0,0.0113646]
[1766154403318,0.03166432,88052.0,88044.0,0.0113641]
[1766154403523,0.02594432,88051.0,88038.0,0.00564]
[1766154403718,0.00572003,88055.0,88050.0,0.0113633]
[1766154404026,0.00572,88061.0,88050.0,0.0113633]
[1766154404225,0.02594002,88060.0,88038.0,0.00564]
[1766154404427,0.02594002,88059.0,88046.0,0.0113638]
[1766154404629,0.02594002,88058.0,88040.0,0.0113646]
[1766154404818,0.00572,88063.0,88042.0,0.0113643]
[1766154405126,0.33422976,88052.0,88024.0,2.38712]